bitfinex-derivatives/quotes_ETHF0:USTF0_20241231
["timestamp","ask_amount","ask_price","bid_price","bid_amount"]
[1735632326900,3.6483,3357.1,3357.0,0.29831]
[1735632330211,3.6483,3357.1,3356.8,5.09430722]
[1735632330410,3.6483,3357.1,3356.9,0.29831]
[1735632330706,3.6483,3357.1,3356.8,5.09430722]
[1735632330911,3.6483,3357.1,3357.0,0.29831]
[1735632332911,3.6483,3357.1,3356.9,0.29832]
[1735632333210,3.6483,3357.1,3357.0,0.29831]
[1735632334309,0.4405,3357.1,3357.0,0.29831]
[1735632334611,0.4405,3357.1,3356.7,4.67790722]
[1735632334811,0.4405,3357.1,3356.9,0.29832]
[1735632335717,0.4405,3357.1,3356.7,4.67790722]
[1735632336114,0.4405,3357.1,3356.9,0.29832]
[1735632336614,0.4405,3357.1,3357.0,0.29831]
[1735632337016,0.4405,3357.1,3356.9,0.29832]
[1735632338019,0.29833,3356.8,3356.7,4.67790722]
[1735632338721,0.29833,3356.8,3356.6,7.88570722]
[1735632338915,0.892,3356.7,3356.6,7.88570722]
[1735632339420,0.892,3356.7,3356.6,10.4387108]
[1735632340821,3.50609,3357.3,3357.0,0.29831]
[1735632341118,0.8848,3357.2,3356.7,0.1618]
[1735632341318,0.8848,3357.2,3357.0,0.29831]
[1735632343618,1.1831,3357.2,3357.0,0.29831]
[1735632344219,1.1831,3357.2,3356.9,0.29832]
[1735632344711,0.4556,3357.1,3356.9,0.29832]
[1735632346211,0.2983,3357.2,3356.9,0.29832]
[1735632346411,0.2983,3357.2,3356.6,50.9403608]
[1735632346412,10.22555965,3357.7,3357.6,0.29826]
[1735632347721,3.2078,3357.7,3357.6,0.29826]
[1735632350128,3.2078,3357.7,3357.6,41.09826]
[1735632353522,3.2078,3358.3,3358.2,0.29821]
[1735632353727,3.2078,3358.3,3358.2,2.55286358]
[1735632354921,1.3336,3358.5,3358.3,0.2982]
[1735632355128,3.2078,3358.4,3358.3,0.2982]
[1735632355329,3.2078,3358.4,3358.2,2.25465358]
[1735632355532,3.2078,3358.4,3358.2,2.55285358]
[1735632355824,3.2078,3358.4,3358.3,0.2982]
[1735632358222,1.3336,3358.5,3358.2,2.25465358]
[1735632358426,1.3336,3358.5,3358.4,0.29819]
[1735632363345,0.889,3358.5,3358.4,0.29819]
[1735632368932,1.18718,3358.5,3358.4,0.29819]
[1735632369238,0.889,3358.5,3358.4,0.29819]
[1735632369538,1.18718,3358.5,3358.3,0.2982]
[1735632369830,1.18718,3358.5,3358.2,2.25465358]
[1735632370029,0.889,3358.5,3358.2,2.25465358]
[1735632370230,0.889,3358.5,3358.3,0.2982]
[1735632371531,0.889,3358.5,3358.4,0.29819]
[1735632372233,0.889,3358.5,3358.4,1.06590061]
[1735632372535,0.889,3358.5,3358.4,1.36409061]
[1735632375042,0.889,3358.5,3358.4,42.16409061]
[1735632376239,0.889,3358.5,3358.4,41.09819]
[1735632379544,3.2078,3358.8,3358.4,40.8]
[1735632379741,3.2078,3358.8,3358.7,0.29816]
[1735632384549,3.2078,3358.8,3358.7,0.59566]
[1735632385952,0.849,3359.0,3358.9,0.29815]
[1735632386147,0.849,3359.0,3358.9,2.54984675]
[1735632387451,0.431,3359.0,3358.9,2.54984675]
[1735632389348,0.44,3359.2,3358.9,2.25169675]
[1735632389554,0.44,3359.2,3359.1,0.29813]
[1735632389555,0.8558,3359.2,3359.1,0.29813]
[1735632390759,3.2078,3359.8,3359.3,0.29811]
[1735632391057,3.2078,3359.8,3359.7,2.54976675]
[1735632392055,4.0622,3360.2,3359.7,43.05169675]
[1735632392359,4.0622,3360.2,3360.1,2.54973675]
[1735632394355,0.4158,3360.2,3360.1,2.54973675]
[1735632396052,3.2078,3360.6,3360.5,0.298]
[1735632396249,3.2078,3360.6,3360.5,2.54969675]
[1735632396651,3.6664,3360.6,3360.5,2.54969675]
[1735632401553,3.6664,3360.6,3360.5,43.34969675]
[1735632402359,3.6664,3360.6,3360.5,2.54969675]
[1735632402758,4.1192,3360.6,3360.5,2.54969675]
[1735632409566,4.1192,3360.6,3359.9,40.8]
[1735632409756,4.1192,3360.6,3360.2,0.29803]
[1735632410060,4.1192,3360.6,3360.3,0.29802]
[1735632410061,0.29801,3360.5,3360.3,0.29802]
[1735632410461,4.1192,3360.6,3360.1,2.25169675]
[1735632410661,0.29802,3360.4,3360.2,0.29803]
[1735632412060,4.1192,3360.6,3360.2,0.29803]
[1735632412361,0.29801,3360.5,3360.3,0.29802]
[1735632412763,4.4172,3360.6,3360.3,0.29802]
[1735632413359,4.1192,3360.6,3360.3,0.29802]
[1735632413663,0.298,3360.5,3360.2,0.29803]
[1735632414665,0.29802,3360.4,3360.1,2.54973675]
[1735632414961,0.29801,3360.5,3360.2,0.29803]
[1735632416164,4.1192,3360.6,3360.1,2.54973675]
[1735632416165,0.29802,3360.4,3360.1,2.54973675]
[1735632416463,0.29802,3360.4,3360.2,0.29803]
[1735632416964,0.29802,3360.4,3360.1,2.54972675]
[1735632419362,0.29802,3360.4,3360.2,0.29803]
[1735632419664,0.29803,3360.3,3360.1,2.25169675]
[1735632419869,3.6468,3360.2,3360.1,2.54973675]
[1735632420563,3.6468,3360.2,3359.9,40.8]
[1735632420759,0.8571,3360.1,3359.9,40.8]
[1735632421070,0.29806,3359.9,3359.6,0.29808]
[1735632421273,3.2078,3359.8,3359.6,0.29808]
[1735632421566,0.439,3359.7,3359.6,0.29808]
[1735632422069,0.439,3359.7,3359.6,41.09808]
[1735632425067,0.439,3359.7,3359.6,40.8]
[1735632425365,0.2981,3359.5,3359.3,0.29811]
[1735632425569,0.4182,3359.4,3359.3,0.29811]
[1735632426276,0.29811,3359.3,3359.2,40.8]
[1735632427264,0.29813,3359.2,3358.9,2.54984675]
[1735632427468,3.2078,3359.0,3358.9,2.25169675]
[1735632427664,3.2078,3359.0,3358.9,2.54984675]
[1735632427864,3.2078,3359.0,3358.9,43.05169675]
[1735632428065,3.2078,3359.0,3358.9,40.8]
[1735632428274,3.2078,3359.0,3358.6,2.25169675]
[1735632428668,0.29817,3358.7,3358.6,2.25169675]
[1735632428972,0.29815,3358.9,3358.6,2.54986675]
[1735632429177,0.4424,3358.8,3358.6,2.54986675]
[1735632430171,3.2078,3359.0,3358.6,2.25169675]
[1735632430371,0.9144,3359.1,3359.0,0.29814]
[1735632430876,3.2078,3359.4,3359.3,0.29811]
[1735632431174,3.2078,3359.4,3359.3,2.54980675]
[1735632431569,3.2078,3359.4,3359.3,0.29811]
[1735632433072,3.2078,3359.4,3359.3,0.71961]
[1735632434674,3.2078,3359.4,3359.3,0.29811]
[1735632435369,3.2078,3359.4,3358.9,2.67319675]
[1735632435570,0.44,3359.3,3358.9,2.67319675]
[1735632435771,0.29812,3359.2,3358.9,2.54984675]
[1735632436167,0.44,3359.3,3358.9,2.25169675]
[1735632436367,0.29814,3359.1,3358.9,2.25169675]
[1735632436572,0.44,3359.3,3358.7,0.29816]
[1735632436771,0.44,3359.3,3358.3,9.80261476]
[1735632436772,3.93444,3359.0,3358.8,0.29816]
[1735632436969,0.4172,3358.9,3358.8,0.29816]
[1735632437682,3.6363,3359.0,3358.9,0.29815]
[1735632438183,3.93444,3359.0,3358.8,40.8]
[1735632438379,3.6363,3359.0,3358.8,41.09815]
[1735632439380,3.6363,3359.0,3358.8,40.8]
[1735632439686,3.6363,3359.0,3358.9,0.29815]
[1735632440372,3.6363,3359.0,3358.8,40.8]
[1735632440573,0.29815,3358.9,3358.8,40.8]
[1735632440872,3.6363,3359.0,3358.4,2.25169675]
[1735632441072,3.6363,3359.0,3358.8,0.29815]
[1735632441288,3.6363,3359.0,3358.8,41.09815]
[1735632441575,3.93444,3359.0,3358.8,40.8]
[1735632442180,3.6363,3359.0,3358.8,41.09816]
[1735632442487,3.93444,3359.0,3358.8,40.8]
[1735632443675,0.29815,3358.9,3358.8,40.8]
[1735632444278,3.93444,3359.0,3358.8,40.8]
[1735632450483,3.6363,3359.0,3358.8,40.8]
[1735632450785,3.6363,3359.0,3358.9,0.72775]
[1735632450981,3.2078,3359.0,3358.9,0.72775]
[1735632451293,3.2078,3359.0,3358.9,1.18565]
[1735632451585,3.2078,3359.0,3358.9,41.98565]
[1735632453483,3.2078,3359.0,3358.9,1.18565]
[1735632454384,3.2078,3359.0,3358.9,0.72775]
[1735632456879,3.6602,3359.0,3358.9,0.72775]
[1735632458687,3.6602,3359.0,3358.9,0.29815]
[1735632472296,3.6602,3359.0,3358.9,1.36370007]
[1735632474200,3.6602,3359.0,3358.9,0.29815]
[1735632481602,3.6602,3359.0,3358.9,2.54930774]
[1735632482698,3.6602,3359.0,3358.9,7.22486235]
[1735632483999,3.6602,3359.0,3358.9,4.97370461]
[1735632484208,3.6602,3359.0,3358.9,4.67555461]
[1735632484399,3.95834,3359.0,3358.9,4.67555461]
[1735632485209,3.6602,3359.0,3358.8,0.29816]
[1735632485404,3.6602,3359.0,3358.9,0.29815]
[1735632486011,0.29815,3358.9,3358.7,0.29817]
[1735632486413,3.6602,3359.0,3358.6,40.8]
[1735632486905,3.95835,3359.0,3358.8,0.29816]
[1735632487099,0.29815,3358.9,3358.6,41.09817]
[1735632487410,0.29815,3358.9,3358.7,0.29816]
[1735632487912,0.29815,3358.9,3358.6,0.29817]
[1735632488303,3.6602,3359.0,3358.4,4.67555461]
[1735632488503,0.29815,3358.9,3358.5,41.09818]
[1735632488711,3.6602,3359.0,3358.5,40.8]
[1735632489411,0.29816,3358.8,3358.5,41.09818]
[1735632489812,0.425,3358.7,3358.5,41.09818]
[1735632490015,0.4287,3358.6,3358.5,40.8]
[1735632490706,0.4287,3358.6,3358.5,41.09818]
[1735632491608,0.425,3358.7,3358.6,0.29817]
[1735632492309,0.425,3358.7,3358.6,2.54932774]
[1735632492516,0.4287,3358.9,3358.8,0.29816]
[1735632494209,0.4287,3358.9,3358.7,0.29816]
[1735632496517,0.72685,3358.9,3358.7,0.29816]
[1735632496724,0.4481,3358.8,3358.7,0.29816]
[1735632497021,0.74626,3358.8,3358.6,2.54932774]
[1735632497709,7.0042774,3359.6,3359.5,0.29809]
[1735632497907,7.0042774,3359.6,3359.5,2.54924774]
[1735632498709,7.0042774,3359.6,3359.5,43.34924774]
[1735632499217,7.0042774,3359.6,3359.5,48.02480235]
[1735632499418,3.6619,3360.0,3359.5,48.02480235]
[1735632499419,3.6619,3360.0,3359.9,0.29806]
[1735632500411,3.6619,3360.0,3359.5,2.69985774]
[1735632500616,3.6619,3360.0,3359.9,0.29806]
[1735632501012,3.6619,3360.0,3359.6,0.29809]
[1735632501217,3.6619,3360.0,3359.8,0.29806]
[1735632502014,0.29806,3359.9,3359.5,2.54924774]
[1735632502418,0.4551,3359.8,3359.5,2.54924774]
[1735632502620,0.4248,3359.7,3359.5,2.54924774]
[1735632503414,0.4248,3359.7,3359.6,0.29809]
[1735632506418,0.4248,3359.7,3359.5,2.25115774]
[1735632506615,0.4248,3359.7,3359.5,2.54924774]
[1735632507218,0.4248,3359.7,3359.5,2.25115774]
[1735632507419,0.72288,3359.7,3359.4,0.2981]
[1735632507921,0.72289,3359.7,3359.4,0.29811]
[1735632508924,0.4248,3359.7,3359.4,0.29811]
[1735632509121,0.72289,3359.7,3359.4,0.29811]
[1735632511023,0.4248,3359.7,3359.2,2.69225774]
[1735632511228,0.4248,3359.7,3359.6,0.2981]
[1735632511438,0.4248,3359.7,3359.2,2.69225774]
[1735632511639,0.72289,3359.7,3359.4,0.29811]
[1735632511839,0.4248,3359.7,3359.5,0.2981]
[1735632512033,0.72289,3359.7,3359.4,0.29811]
[1735632512330,0.4248,3359.7,3359.2,2.69225774]
[1735632512533,0.72289,3359.7,3359.4,0.29811]
[1735632512938,0.4248,3359.7,3359.5,41.0981]
[1735632513632,0.4248,3359.7,3359.5,40.8]
[1735632513842,0.72289,3359.7,3359.5,0.2981]
[1735632514041,0.4248,3359.7,3359.5,0.2981]
[1735632514631,0.4551,3359.8,3359.5,2.25115774]
[1735632514836,0.4551,3359.8,3359.7,0.29809]
[1735632517747,3.6619,3360.0,3359.6,0.4407]
[1735632517938,3.6619,3360.0,3359.9,0.29807]
[1735632526848,3.6619,3360.0,3359.9,2.54922774]
[1735632528651,3.2078,3360.0,3359.9,2.54922774]
[1735632530351,3.2078,3360.0,3359.9,1.36291122]
[1735632531646,3.2078,3360.0,3359.9,2.42775244]
[1735632534744,3.2078,3360.0,3359.9,1.36291122]
[1735632535252,3.2078,3360.0,3359.9,2.42775244]
[1735632535848,3.2078,3360.0,3359.9,1.36291122]
[1735632536753,3.2078,3360.0,3359.9,2.42775244]
[1735632537654,3.2078,3360.0,3359.9,1.36291122]
[1735632544949,3.2078,3360.0,3359.9,2.42775244]
[1735632545153,3.2078,3360.0,3359.9,0.29807]
[1735632545460,3.2078,3360.0,3359.9,2.42775244]
[1735632547462,3.2078,3360.0,3359.9,1.36291122]
[1735632550664,3.2078,3360.0,3359.9,2.42775244]
[1735632550859,0.4436,3360.4,3360.3,0.29803]
[1735632551255,0.4436,3360.4,3360.3,41.09803]
[1735632551460,3.2078,3360.5,3360.4,0.29802]
[1735632551758,3.2078,3360.9,3360.8,0.29798]
[1735632551964,3.2078,3360.9,3360.8,1.36282122]
[1735632552160,3.2078,3360.9,3360.8,42.16282122]
[1735632552755,3.2078,3360.9,3360.8,43.22766244]
[1735632553262,3.2078,3360.9,3360.8,42.16282122]
[1735632557468,7.0042774,3362.0,3360.8,47.92968244]
[1735632557767,7.0042774,3362.0,3361.9,1.36273122]
[1735632559273,0.8768,3362.1,3362.0,0.29788]
[1735632559571,0.4592,3362.1,3362.0,1.36272122]
[1735632560270,0.4592,3362.1,3362.0,2.54402694]
[1735632560468,0.4592,3362.1,3362.0,0.29788]
[1735632564765,0.4592,3362.1,3362.0,1.46888]
[1735632569777,0.4592,3362.1,3362.0,42.26888]
[1735632571977,0.4379,3362.3,3362.2,0.29787]
[1735632572177,0.4379,3362.3,3362.2,2.54401694]
[1735632572571,0.8573,3362.3,3362.2,2.54401694]
[1735632580174,0.8573,3362.3,3362.2,0.29787]
[1735632580379,0.8573,3362.3,3362.2,1.36106663]
[1735632583395,0.8573,3362.3,3361.3,3.2078]
[1735632583396,5.8573,3362.3,3361.3,3.2078]
[1735632583693,3.2078,3361.6,3361.5,1.06319663]
[1735632583891,3.2078,3361.6,3361.4,0.67053663]
[1735632584091,0.4453,3361.5,3361.4,0.67053663]
[1735632584292,0.4453,3361.5,3361.4,40.8]
[1735632584492,0.4453,3361.5,3361.3,0.29795]
[1735632585092,0.4453,3361.5,3361.3,41.09795]
[1735632585287,0.4453,3361.5,3361.3,40.8]
[1735632585893,0.4453,3361.5,3361.3,41.09794]
[1735632586088,0.29796,3361.1,3360.9,3.2078]
[1735632586294,0.29796,3361.1,3360.8,0.29799]
[1735632586594,0.29796,3361.1,3360.9,40.8]
[1735632586988,0.4585,3361.0,3360.8,0.29799]
[1735632587190,0.4585,3361.0,3360.7,2.24810223]
[1735632587395,0.4585,3361.0,3360.7,0.29799]
[1735632587599,0.4585,3361.0,3360.8,0.29799]
[1735632587796,0.4585,3361.0,3360.7,0.29799]
[1735632588794,0.75648,3361.0,3360.7,0.29799]
[1735632589403,0.431,3360.9,3360.7,0.29799]
[1735632589601,0.4292,3360.8,3360.4,2.24810223]
[1735632589796,0.4292,3360.8,3360.6,0.298]
[1735632589991,0.4292,3360.8,3360.7,0.298]
[1735632590197,0.4292,3360.8,3360.7,2.54610223]
[1735632590601,0.4292,3360.8,3360.7,43.34610223]
[1735632591002,0.431,3360.9,3360.7,43.04810223]
[1735632591194,0.4585,3361.0,3360.7,43.04810223]
[1735632591398,0.4585,3361.0,3360.9,0.29798]
[1735632592705,0.8602,3361.5,3361.3,0.29794]
[1735632592904,0.4421,3361.4,3361.3,0.29794]
[1735632595102,3.2078,3361.7,3361.2,2.24810223]
[1735632595401,3.2078,3361.7,3361.6,2.54602223]
[1735632596899,0.049,3361.8,3361.7,0.29791]
[1735632598615,0.4564,3362.0,3361.6,2.24810223]
[1735632598616,0.049,3361.9,3361.6,2.24810223]
[1735632598810,0.049,3361.9,3361.8,0.2979]
[1735632605016,0.049,3361.9,3361.8,0.7131]
[1735632606218,0.049,3361.9,3361.8,41.5131]
[1735632606520,0.049,3362.5,3361.8,41.2152]
[1735632606727,0.049,3362.5,3362.4,0.29785]
[1735632606913,0.049,3362.5,3362.4,0.29527288]
[1735632608221,0.049,3362.5,3362.3,0.29785]
[1735632608712,0.049,3362.5,3362.4,0.29785]
[1735632613224,0.049,3362.5,3362.3,0.29785]
[1735632614023,0.34684,3362.5,3362.3,0.29785]
[1735632614428,0.049,3362.5,3362.0,2.24810223]
[1735632614722,0.049,3362.5,3362.4,0.29785]
[1735632618229,0.049,3362.5,3362.3,0.29785]
[1735632618422,0.049,3362.5,3362.0,2.24810223]
[1735632618825,0.049,3362.5,3362.3,0.29785]
[1735632619128,0.049,3362.5,3362.0,2.24810223]
[1735632619325,0.29785,3362.4,3362.2,0.29786]
[1735632619820,0.4451,3362.3,3362.2,0.29786]
[1735632620526,0.049,3362.5,3361.7,3.2078]
[1735632620733,0.29787,3362.1,3361.9,0.29788]
[1735632621035,0.4359,3362.0,3361.9,0.29788]
[1735632621530,0.4359,3362.0,3361.8,0.29789]
[1735632622026,0.4359,3362.0,3361.9,0.29789]
[1735632622226,0.4359,3362.0,3361.8,0.2979]
[1735632622422,0.4359,3362.0,3361.5,41.6565]
[1735632622724,0.4359,3362.0,3361.8,0.2979]
[1735632623524,0.4359,3362.0,3361.9,0.29789]
[1735632624025,0.4359,3362.0,3361.5,41.2165]
[1735632624227,0.2979,3361.9,3361.5,41.2165]
[1735632624430,0.2979,3361.9,3361.7,0.29791]
[1735632624927,0.4359,3362.0,3361.5,41.2165]
[1735632625527,4.106,3362.2,3362.1,0.29788]
[1735632631034,0.29788,3362.1,3361.9,0.29789]
[1735632631331,0.71678,3362.1,3361.9,0.29789]
[1735632632443,0.71678,3362.1,3361.5,41.6452]
[1735632632638,0.71678,3362.1,3361.8,0.2979]
[1735632632836,0.71678,3362.1,3361.9,0.29789]
[1735632633038,0.71678,3362.1,3361.5,41.6452]
[1735632633234,0.4189,3362.1,3361.3,7.88335461]
[1735632633438,0.4189,3362.1,3361.2,5.54075461]
[1735632633439,0.049,3361.9,3361.2,5.54075461]
[1735632633944,0.049,3361.9,3361.3,40.8]
[1735632634148,0.049,3361.9,3361.4,0.29794]
[1735632634440,0.049,3361.9,3361.5,0.29793]
[1735632634441,0.29792,3361.7,3361.5,0.29793]
[1735632634635,0.442,3361.6,3361.5,0.29793]
[1735632634836,0.8679,3361.6,3361.5,0.29793]
[1735632635338,0.8679,3361.6,3361.2,3.2078]
[1735632635642,0.29795,3361.3,3361.2,3.2078]
[1735632636038,0.4592,3361.5,3361.2,3.2078]
[1735632636345,0.29795,3361.3,3361.2,3.2078]
[1735632637444,0.29795,3361.3,3361.1,0.29796]
[1735632637834,0.29795,3361.3,3360.7,43.49320223]
[1735632639046,0.29795,3361.3,3361.0,0.29797]
[1735632639244,3.2078,3361.4,3361.0,0.29797]
[1735632639438,0.29796,3361.2,3361.0,0.29797]
[1735632639638,3.2078,3361.4,3360.7,40.8]
[1735632639840,0.29798,3360.9,3360.6,0.298]
[1735632640040,0.4155,3360.8,3360.6,0.298]
[1735632640347,0.29801,3360.7,3360.6,40.8]
[1735632640743,0.7135,3360.8,3360.6,40.8]
[1735632641448,0.4155,3360.8,3360.6,40.8]
[1735632641748,0.71349,3360.8,3360.6,0.29801]
[1735632641944,0.29804,3360.3,3360.0,8.18141461]
[1735632642150,0.29802,3360.5,3360.1,0.29805]
[1735632642649,0.74003,3360.4,3360.1,0.29805]
[1735632643550,0.442,3360.4,3360.1,0.29805]
[1735632644251,0.442,3360.4,3360.0,3.2078]
[1735632644453,3.2078,3360.6,3360.0,5.45590223]
[1735632644750,0.4155,3360.8,3360.6,0.29801]
[1735632644954,0.4155,3360.8,3360.0,5.45590223]
[1735632645346,0.4155,3360.8,3360.5,0.29801]
[1735632645548,0.71349,3360.8,3360.5,0.29801]
[1735632645748,0.4155,3360.8,3360.5,0.29801]
[1735632647257,0.29801,3360.7,3360.0,5.45590223]
[1735632648149,0.4155,3360.8,3360.0,5.45590223]
[1735632648344,0.29801,3360.7,3360.4,0.29802]
[1735632648752,0.29802,3360.5,3360.2,0.29804]
[1735632649850,0.4155,3360.8,3360.0,5.45590223]
[1735632650048,0.29801,3360.6,3360.3,0.29804]
[1735632650751,0.4155,3360.8,3360.3,0.29804]
[1735632650950,0.29802,3360.5,3360.1,0.29805]
[1735632651147,0.29802,3360.5,3360.0,5.45590223]
[1735632651354,0.29804,3360.3,3360.0,3.50586]
[1735632652264,0.29805,3360.2,3360.0,3.2078]
[1735632652460,0.29804,3360.3,3360.0,3.50586]
[1735632652661,0.4586,3360.2,3360.0,3.50586]
[1735632653051,0.4586,3360.2,3360.0,3.2078]
[1735632653261,0.29805,3360.1,3360.0,3.2078]
[1735632653864,0.4586,3360.2,3359.9,0.4166]
[1735632654057,0.75666,3360.2,3359.9,0.71468]
[1735632654364,0.4586,3360.2,3359.9,0.4166]
[1735632654565,0.29808,3359.9,3359.8,40.8]
[1735632654768,0.29811,3359.6,3359.3,0.29813]
[1735632655262,0.4173,3359.5,3359.4,40.8]
[1735632655565,0.4173,3359.5,3359.4,41.09813]
[1735632655963,0.4173,3359.5,3359.4,40.8]
[1735632656161,0.4173,3359.5,3359.4,41.09813]
[1735632656661,0.4173,3359.5,3359.2,0.4189]
[1735632657060,0.71542,3359.5,3359.3,0.29814]
[1735632657257,0.71542,3359.5,3359.2,41.51704]
[1735632657461,0.71542,3359.5,3359.2,41.2189]
[1735632657462,0.4173,3359.5,3359.2,41.2189]
[1735632657762,0.4173,3359.5,3359.2,0.4189]
[1735632657763,0.29813,3359.4,3359.2,0.4189]
[1735632658865,0.4173,3359.5,3359.2,0.4189]
[1735632659067,0.29814,3359.3,3359.2,0.4189]
[1735632659367,0.29815,3359.2,3359.1,44.0078]
[1735632659567,0.75825,3359.2,3359.1,44.0078]
[1735632659762,0.4601,3359.2,3359.1,3.2078]
[1735632659963,0.4601,3359.2,3359.1,3.50596]
[1735632660670,0.4601,3359.2,3359.1,3.2078]
[1735632660861,0.29817,3359.0,3358.8,0.432]
[1735632661965,0.4607,3359.1,3358.8,0.432]
[1735632662166,0.75886,3359.1,3358.8,0.73017]
[1735632662470,0.4607,3359.1,3358.9,0.29817]
[1735632662673,0.4607,3359.1,3358.8,0.73018]
[1735632663468,0.4607,3359.1,3358.9,0.29817]
[1735632663873,0.4607,3359.1,3358.8,0.73018]
[1735632663874,0.75886,3359.1,3358.8,0.73018]
[1735632664468,0.75886,3359.1,3358.8,0.432]
[1735632664768,0.4607,3359.1,3358.9,0.29817]
[1735632664975,0.75825,3359.2,3358.9,0.29817]
[1735632665266,0.4601,3359.2,3358.8,0.432]
[1735632665465,3.50593,3359.4,3359.1,0.29815]
[1735632665672,3.6265,3359.4,3359.2,0.74174]
[1735632665865,3.6265,3359.4,3359.3,0.4321]
[1735632667868,3.92463,3359.4,3359.3,0.4321]
[1735632668969,3.6265,3359.4,3359.3,0.4321]
[1735632669170,3.2078,3359.8,3359.3,0.4321]
[1735632669371,3.2078,3359.8,3359.4,2.24810223]
[1735632669571,3.2078,3360.4,3359.4,5.45590223]
[1735632669771,0.29805,3360.3,3359.5,40.8]
[1735632669973,3.2078,3360.4,3359.7,2.24810223]
[1735632670267,3.2078,3360.4,3360.2,0.29805]
[1735632670472,3.2078,3360.4,3359.8,0.4511]
[1735632670677,3.50584,3360.4,3360.2,0.29806]
[1735632671268,3.50584,3360.4,3360.1,0.29806]
[1735632671465,3.50584,3360.4,3360.2,0.29806]
[1735632671668,3.50584,3360.4,3359.8,0.4511]
[1735632671669,3.2078,3360.4,3359.8,0.4511]
[1735632671872,3.2078,3359.9,3359.5,40.8]
[1735632672067,3.2078,3359.9,3359.4,3.2078]
[1735632672068,0.4499,3359.8,3359.4,3.2078]
[1735632672279,1.3071,3359.8,3359.3,0.4273]
[1735632672479,1.3071,3359.8,3359.0,3.2078]
[1735632672771,0.29815,3359.2,3359.0,0.4273]
[1735632672976,0.72066,3359.1,3359.0,0.4273]
[1735632673171,0.29817,3359.0,3358.6,3.50599]
[1735632673372,0.29818,3358.9,3358.6,3.50599]
[1735632674277,0.29817,3359.0,3358.7,0.29818]
[1735632674977,0.72066,3359.1,3358.8,0.29818]
[1735632675174,0.72066,3359.1,3358.6,3.2078]
[1735632675480,0.72066,3359.1,3358.8,0.29818]
[1735632675780,0.29816,3359.0,3358.8,0.29818]
[1735632675980,0.29816,3359.0,3358.6,3.2078]
[1735632676182,0.29818,3358.9,3358.6,3.506]
[1735632676781,0.8761,3359.0,3358.6,3.2078]
[1735632676989,0.8761,3359.0,3358.8,0.29818]
[1735632677277,1.17426,3359.0,3358.7,0.29819]
[1735632677483,1.17426,3359.0,3358.6,3.2078]
[1735632678187,0.8761,3359.0,3358.6,3.2078]
[1735632678380,0.29818,3358.9,3358.6,3.2078]
[1735632678583,0.29818,3358.9,3358.7,0.29819]
[1735632679881,0.29817,3358.9,3358.7,0.29819]
[1735632680082,0.29817,3358.9,3358.6,3.506]
[1735632680283,0.29817,3358.9,3358.7,0.29819]
[1735632681186,0.29817,3358.9,3358.6,3.506]
[1735632681382,0.29819,3358.7,3358.6,3.2078]
[1735632682591,0.29819,3358.8,3358.6,3.2078]
[1735632682887,0.29818,3358.9,3358.6,3.50599]
[1735632685487,0.29818,3358.9,3358.6,0.29819]
[1735632686691,3.94057,3359.0,3358.6,0.29819]
[1735632686884,3.6424,3359.0,3358.9,0.29817]
[1735632687088,3.94057,3359.0,3358.5,0.4273]
[1735632687696,3.6424,3359.0,3358.5,0.4273]
[1735632687882,3.6424,3359.0,3358.9,0.29817]
[1735632688582,3.2078,3359.0,3358.9,0.29817]
[1735632688787,3.2078,3359.4,3359.2,0.29814]
[1735632688988,3.2078,3359.4,3359.3,0.4525]
[1735632689394,3.2078,3359.4,3359.3,0.75064]
[1735632689891,3.50593,3359.4,3359.3,0.4525]
[1735632690291,3.2078,3359.4,3359.3,0.4525]
[1735632690492,3.2078,3359.4,3359.3,0.75064]
[1735632691196,3.50593,3359.4,3359.3,0.4525]
[1735632691496,3.2078,3359.4,3359.3,0.4525]
[1735632691797,3.2078,3359.4,3359.3,0.75064]
[1735632692897,3.2078,3359.4,3359.3,0.4525]
[1735632693092,3.2078,3359.4,3359.2,0.29814]
[1735632693400,0.4153,3359.3,3359.2,0.29814]
[1735632695494,3.2078,3359.4,3359.3,0.29814]
[1735632696092,0.8624,3359.5,3359.3,0.29814]
[1735632696296,3.2078,3359.4,3359.3,0.29814]
[1735632696997,0.4214,3359.5,3359.4,0.29813]
[1735632697300,0.4214,3359.5,3359.0,3.2078]
[1735632698296,0.71952,3359.5,3359.3,0.29813]
[1735632698696,0.4214,3359.5,3359.4,0.29813]
[1735632699097,0.4328,3359.8,3359.1,0.4569]
[1735632699398,0.4328,3359.8,3359.7,0.2981]
[1735632699599,0.4328,3359.8,3359.3,2.24810223]
[1735632699600,3.2078,3359.9,3359.6,2.24810223]
[1735632699897,3.2078,3359.9,3359.8,0.29809]
[1735632704900,3.2078,3359.9,3359.7,0.2981]
[1735632704901,3.50589,3359.9,3359.7,0.2981]
[1735632705098,3.50589,3359.9,3359.5,0.29812]
[1735632705099,0.2981,3359.7,3359.5,0.29812]
[1735632705504,0.4337,3359.6,3359.5,0.29812]
[1735632706107,0.29812,3359.5,3359.4,0.4365]
[1735632706307,0.29813,3359.4,3359.2,0.29814]
[1735632706517,0.888,3359.5,3359.0,10.13145684]
[1735632706718,0.888,3359.5,3359.3,0.29813]
[1735632707011,0.888,3359.5,3359.4,0.29813]
[1735632707720,0.436,3359.5,3359.4,0.29813]
[1735632708221,0.8615,3359.8,3359.3,2.24810223]
[1735632708518,0.29811,3359.7,3359.4,0.29812]